fUST/lending_fUST_20260512
["ID","MTS","AMOUNT","RATE_DAILY","PERIOD"]
[422068956,1778547044000,-300.0,0.00011176,2]
[422068949,1778547044000,-300.0,0.00011176,2]
[422068958,1778547044000,-300.0,0.00011176,2]
[422068960,1778547044000,-300.0,0.00011176,2]
[422068961,1778547044000,-300.0,0.00011176,2]
[422068968,1778547044000,-300.0,0.00011176,2]
[422068951,1778547044000,-300.0,0.00011176,2]
[422069175,1778547047000,-390.22671953,0.00011232,2]
[422069172,1778547047000,-651.87,0.00011232,2]
[422069174,1778547047000,-500.0,0.00011232,2]
[422069170,1778547047000,-500.0,0.00011232,2]
[422069173,1778547047000,-500.0,0.00011232,2]
[422069176,1778547047000,-109.77328047,0.00011232,2]
[422069187,1778547047000,-500.0,0.00011232,2]
[422069178,1778547047000,-609.2,0.00011232,2]
[422069194,1778547047000,-591.25,0.00011232,2]
[422069181,1778547047000,-500.0,0.00011232,2]
[422069180,1778547047000,-500.0,0.00011232,2]
[422069183,1778547047000,-500.0,0.00011232,2]
[422069195,1778547047000,-500.0,0.00011232,2]
[422069171,1778547047000,-500.0,0.00011232,2]
[422069190,1778547047000,-492.87088346,0.00011232,2]
[422069192,1778547047000,-500.0,0.00011232,2]
[422069185,1778547047000,-500.0,0.00011232,2]
[422069169,1778547047000,-297.61811859,0.00011232,2]
[422069162,1778547047000,-593.09,0.00011232,2]
[422069168,1778547047000,-202.38188141,0.00011232,2]
[422069148,1778547047000,-508.06,0.00010958,2]
[422069151,1778547047000,-7503.52710215,0.00011232,2]
[422069150,1778547047000,-500.0,0.00010958,2]
[422069153,1778547047000,-500.0,0.00011232,2]
[422069154,1778547047000,-500.0,0.00011232,2]
[422069155,1778547047000,-500.0,0.00011232,2]
[422069156,1778547047000,-674.08,0.00011232,2]
[422069152,1778547047000,-500.0,0.00011232,2]
[422069157,1778547047000,-306.54956942,0.00011232,2]
[422069158,1778547047000,-500.0,0.00011232,2]
[422069159,1778547047000,-500.0,0.00011232,2]
[422069160,1778547047000,-500.0,0.00011232,2]
[422069164,1778547047000,-500.0,0.00011232,2]
[422069193,1778547047000,-500.0,0.00011232,2]
[422069163,1778547047000,-500.0,0.00011232,2]
[422069165,1778547047000,-500.0,0.00011232,2]
[422069167,1778547047000,-455.10667157,0.00011232,2]
[422069166,1778547047000,-44.89332843,0.00011232,2]
[422069196,1778547047000,-500.0,0.00011232,2]
[422069161,1778547047000,-500.0,0.00011232,2]
[422069197,1778547047000,-500.0,0.00011232,2]
[422069223,1778547047000,-500.0,0.00011232,2]
[422069222,1778547047000,-500.0,0.00011232,2]
[422069220,1778547047000,-500.0,0.00011232,2]
[422069224,1778547047000,-500.0,0.00011232,2]
[422069226,1778547047000,-500.0,0.00011232,2]
[422069225,1778547047000,-500.0,0.00011232,2]
[422069227,1778547047000,-500.0,0.00011232,2]
[422069228,1778547047000,-787.46,0.00011232,2]
[422069230,1778547047000,-500.08,0.00011232,2]
[422069229,1778547047000,-564.58,0.00011232,2]
[422069231,1778547047000,-500.84,0.00011232,2]
[422069236,1778547047000,-500.0,0.00011232,2]
[422069232,1778547047000,-500.0,0.00011232,2]
[422069233,1778547047000,-1530.4,0.00011232,2]
[422069237,1778547047000,-573.45,0.00011232,2]
[422069235,1778547047000,-1471.17,0.00011232,2]
[422069198,1778547047000,-500.0,0.00011232,2]
[422069221,1778547047000,-500.0,0.00011232,2]
[422069218,1778547047000,-500.0,0.00011232,2]
[422069234,1778547047000,-386.24,0.00011232,2]
[422069217,1778547047000,-500.0,0.00011232,2]
[422069200,1778547047000,-1495.84,0.00011232,2]
[422069219,1778547047000,-593.57,0.00011232,2]
[422069204,1778547047000,-513.7,0.00011232,2]
[422069203,1778547047000,-500.0,0.00011232,2]
[422069199,1778547047000,-500.0,0.00011232,2]
[422069201,1778547047000,-500.0,0.00011232,2]
[422069205,1778547047000,-500.0,0.00011232,2]
[422069206,1778547047000,-548.38,0.00011232,2]
[422069207,1778547047000,-500.0,0.00011232,2]
[422069202,1778547047000,-500.0,0.00011232,2]
[422069211,1778547047000,-500.0,0.00011232,2]
[422069212,1778547047000,-500.0,0.00011232,2]
[422069210,1778547047000,-557.19,0.00011232,2]
[422069209,1778547047000,-713.57,0.00011232,2]
[422069216,1778547047000,-534.31,0.00011232,2]
[422069214,1778547047000,-500.0,0.00011232,2]
[422069213,1778547047000,-495.93,0.00011232,2]
[422069208,1778547047000,-500.0,0.00011232,2]
[422069215,1778547047000,-1526.57,0.00011232,2]
[422069281,1778547048000,-500.0,0.00011232,2]
[422069283,1778547048000,-500.0,0.00011232,2]
[422069282,1778547048000,-500.0,0.00011232,2]
[422069279,1778547048000,-500.0,0.00011232,2]
[422069280,1778547048000,-3612.38,0.00011232,2]
[422069276,1778547048000,-2200.77,0.00011232,2]
[422069278,1778547048000,-535.57,0.00011232,2]
[422069275,1778547048000,-990.22,0.00011232,2]
[422069274,1778547048000,-794.38,0.00011232,2]
[422069271,1778547048000,-1229.46,0.00011232,2]
[422069284,1778547048000,-3107.85,0.00011232,2]
[422069272,1778547048000,-557.66,0.00011232,2]
[422069277,1778547048000,-500.0,0.00011232,2]
[422069285,1778547048000,-637.35,0.00011232,2]
[422069293,1778547048000,-500.0,0.00011232,2]
[422069288,1778547048000,-500.0,0.00011232,2]
[422069286,1778547048000,-2384.13,0.00011232,2]
[422069290,1778547048000,-500.0,0.00011232,2]
[422069291,1778547048000,-503.0542906,0.00011232,2]
[422069289,1778547048000,-500.0,0.00011232,2]
[422069292,1778547048000,-1742.23,0.00011232,2]
[422069294,1778547048000,-500.0,0.00011232,2]
[422069297,1778547048000,-500.0,0.00011232,2]
[422069295,1778547048000,-500.0,0.00011232,2]
[422069296,1778547048000,-500.0,0.00011232,2]
[422069299,1778547048000,-544.25600752,0.00011232,2]
[422069273,1778547048000,-500.0,0.00011232,2]
[422069298,1778547048000,-567.01,0.00011232,2]
[422069287,1778547048000,-500.0,0.00011232,2]
[422069269,1778547048000,-500.0,0.00011232,2]
[422069249,1778547048000,-500.0,0.00011232,2]
[422069268,1778547048000,-500.0,0.00011232,2]
[422069300,1778547048000,-16711.42,0.00011232,2]
[422069238,1778547048000,-500.0,0.00011232,2]
[422069239,1778547048000,-500.0,0.00011232,2]
[422069240,1778547048000,-500.0,0.00011232,2]
[422069241,1778547048000,-500.0,0.00011232,2]
[422069242,1778547048000,-500.0,0.00011232,2]
[422069245,1778547048000,-500.0,0.00011232,2]
[422069244,1778547048000,-500.0,0.00011232,2]
[422069243,1778547048000,-500.0,0.00011232,2]
[422069246,1778547048000,-500.0,0.00011232,2]
[422069247,1778547048000,-3530.81,0.00011232,2]
[422069250,1778547048000,-500.0,0.00011232,2]
[422069248,1778547048000,-500.0,0.00011232,2]
[422069252,1778547048000,-500.0,0.00011232,2]
[422069251,1778547048000,-3197.75,0.00011232,2]
[422069253,1778547048000,-500.0,0.00011232,2]
[422069254,1778547048000,-500.0,0.00011232,2]
[422069256,1778547048000,-500.0,0.00011232,2]
[422069259,1778547048000,-500.0,0.00011232,2]
[422069257,1778547048000,-1291.01,0.00011232,2]
[422069260,1778547048000,-500.0,0.00011232,2]
[422069255,1778547048000,-683.99,0.00011232,2]
[422069258,1778547048000,-944.48,0.00011232,2]
[422069262,1778547048000,-500.0,0.00011232,2]
[422069264,1778547048000,-903.05,0.00011232,2]
[422069261,1778547048000,-571.11,0.00011232,2]
[422069263,1778547048000,-1334.83,0.00011232,2]
[422069265,1778547048000,-810.1,0.00011232,2]
[422069267,1778547048000,-500.0,0.00011232,2]
[422069270,1778547048000,-2239.03,0.00011232,2]
[422069301,1778547048000,-688.42,0.00011232,2]
[422069266,1778547048000,-500.0,0.00011232,2]
[422069303,1778547048000,-593.62,0.00011232,2]
[422069336,1778547048000,-500.0,0.00011232,2]
[422069364,1778547048000,-500.0,0.00011506,2]
[422069339,1778547048000,-120521.18055071,0.000114,2]
[422069340,1778547048000,-151.0,0.000115,2]
[422069338,1778547048000,-500.0,0.00011232,2]
[422069342,1778547048000,-12099.92849,0.00011506,2]
[422069341,1778547048000,-1850.608,0.00011506,2]
[422069344,1778547048000,-500.0,0.00011506,2]
[422069343,1778547048000,-249.71600242,0.00011506,2]
[422069346,1778547048000,-576.37305081,0.00011506,2]
[422069345,1778547048000,-500.0,0.00011506,2]
[422069347,1778547048000,-674.08,0.00011506,2]
[422069349,1778547048000,-500.0,0.00011506,2]
[422069351,1778547048000,-500.0,0.00011506,2]
[422069350,1778547048000,-500.0,0.00011506,2]
[422069353,1778547048000,-500.0,0.00011506,2]
[422069352,1778547048000,-593.09,0.00011506,2]
[422069354,1778547048000,-500.0,0.00011506,2]
[422069356,1778547048000,-500.0,0.00011506,2]
[422069355,1778547048000,-500.0,0.00011506,2]
[422069358,1778547048000,-500.0,0.00011506,2]
[422069357,1778547048000,-500.0,0.00011506,2]
[422069359,1778547048000,-651.87,0.00011506,2]
[422069360,1778547048000,-500.0,0.00011506,2]
[422069361,1778547048000,-500.0,0.00011506,2]
[422069365,1778547048000,-500.0,0.00011506,2]
[422069362,1778547048000,-500.0,0.00011506,2]
[422069363,1778547048000,-609.2,0.00011506,2]
[422069302,1778547048000,-500.0,0.00011232,2]
[422069335,1778547048000,-1507.8,0.00011232,2]
[422069337,1778547048000,-508.06,0.00011232,2]
[422069348,1778547048000,-500.0,0.00011506,2]
[422069333,1778547048000,-500.0,0.00011232,2]
[422069332,1778547048000,-500.0,0.00011232,2]
[422069305,1778547048000,-500.0,0.00011232,2]
[422069307,1778547048000,-500.0,0.00011232,2]
[422069308,1778547048000,-702.12,0.00011232,2]
[422069306,1778547048000,-500.0,0.00011232,2]
[422069309,1778547048000,-2618.93,0.00011232,2]
[422069310,1778547048000,-716.01,0.00011232,2]
[422069313,1778547048000,-877.96,0.00011232,2]
[422069304,1778547048000,-3117.48,0.00011232,2]
[422069312,1778547048000,-500.0,0.00011232,2]
[422069314,1778547048000,-1228.08,0.00011232,2]
[422069315,1778547048000,-500.0,0.00011232,2]
[422069316,1778547048000,-1476.52,0.00011232,2]
[422069317,1778547048000,-539.39,0.00011232,2]
[422069318,1778547048000,-500.0,0.00011232,2]
[422069311,1778547048000,-858.15,0.00011232,2]
[422069334,1778547048000,-604.72,0.00011232,2]
[422069320,1778547048000,-355.78526692,0.00011232,2]
[422069330,1778547048000,-288.971898,0.00011232,2]
[422069331,1778547048000,-500.0,0.00011232,2]
[422069328,1778547048000,-500.0,0.00011232,2]
[422069325,1778547048000,-1941.14,0.00011232,2]
[422069326,1778547048000,-500.0,0.00011232,2]
[422069329,1778547048000,-151.0,0.00011232,2]
[422069324,1778547048000,-500.0,0.00011232,2]
[422069323,1778547048000,-500.0,0.00011232,2]
[422069322,1778547048000,-500.0,0.00011232,2]
[422069327,1778547048000,-2468.29,0.00011232,2]
[422069321,1778547048000,-500.0,0.00011232,2]
[422069319,1778547048000,-1282.96,0.00011232,2]
[422069410,1778547049000,-500.0,0.00011506,2]
[422069412,1778547049000,-500.0,0.00011506,2]
[422069413,1778547049000,-500.0,0.00011506,2]
[422069411,1778547049000,-500.0,0.00011506,2]
[422069409,1778547049000,-500.0,0.00011506,2]
[422069405,1778547049000,-500.0,0.00011506,2]
[422069398,1778547049000,-500.0,0.00011506,2]
[422069404,1778547049000,-500.84,0.00011506,2]
[422069402,1778547049000,-564.58,0.00011506,2]
[422069401,1778547049000,-787.46,0.00011506,2]
[422069403,1778547049000,-500.08,0.00011506,2]
[422069400,1778547049000,-500.0,0.00011506,2]
[422069406,1778547049000,-1530.4,0.00011506,2]
[422069414,1778547049000,-500.0,0.00011506,2]
[422069431,1778547049000,-571.11,0.00011506,2]
[422069420,1778547049000,-500.0,0.00011506,2]
[422069417,1778547049000,-500.0,0.00011506,2]
[422069416,1778547049000,-500.0,0.00011506,2]
[422069415,1778547049000,-500.0,0.00011506,2]
[422069419,1778547049000,-508.19804359,0.00011506,2]
[422069418,1778547049000,-3530.81,0.00011506,2]
[422069422,1778547049000,-500.0,0.00011506,2]
[422069424,1778547049000,-500.0,0.00011506,2]
[422069423,1778547049000,-509.09,0.00011506,2]
[422069426,1778547049000,-500.0,0.00011506,2]
[422069430,1778547049000,-500.0,0.00011506,2]
[422069425,1778547049000,-683.99,0.00011506,2]
[422069427,1778547049000,-1291.01,0.00011506,2]
[422069407,1778547049000,-1471.17,0.00011506,2]
[422069421,1778547049000,-3197.75,0.00011506,2]
[422069408,1778547049000,-500.0,0.00011506,2]
[422069369,1778547049000,-500.0,0.00011506,2]
[422069396,1778547049000,-500.0,0.00011506,2]
[422069366,1778547049000,-500.0,0.00011506,2]
[422069428,1778547049000,-944.48,0.00011506,2]
[422069368,1778547049000,-447.26322304,0.00011506,2]
[422069367,1778547049000,-500.0,0.00011506,2]
[422069370,1778547049000,-500.0,0.00011506,2]
[422069371,1778547049000,-591.25,0.00011506,2]
[422069372,1778547049000,-500.0,0.00011506,2]
[422069374,1778547049000,-500.0,0.00011506,2]
[422069373,1778547049000,-500.0,0.00011506,2]
[422069375,1778547049000,-1495.84,0.00011506,2]
[422069377,1778547049000,-500.0,0.00011506,2]
[422069379,1778547049000,-513.7,0.00011506,2]
[422069376,1778547049000,-500.0,0.00011506,2]
[422069380,1778547049000,-500.0,0.00011506,2]
[422069378,1778547049000,-500.0,0.00011506,2]
[422069381,1778547049000,-548.38,0.00011506,2]
[422069384,1778547049000,-713.57,0.00011506,2]
[422069397,1778547049000,-383.55,0.00011506,2]
[422069395,1778547049000,-500.0,0.00011506,2]
[422069393,1778547049000,-500.0,0.00011506,2]
[422069388,1778547049000,-328.35,0.00011506,2]
[422069390,1778547049000,-534.31,0.00011506,2]
[422069394,1778547049000,-194.28,0.00011506,2]
[422069399,1778547049000,-500.0,0.00011506,2]
[422069392,1778547049000,-593.57,0.00011506,2]
[422069391,1778547049000,-500.0,0.00011506,2]
[422069389,1778547049000,-1526.57,0.00011506,2]
[422069386,1778547049000,-500.0,0.00011506,2]
[422069385,1778547049000,-557.19,0.00011506,2]
[422069382,1778547049000,-500.0,0.00011506,2]
[422069383,1778547049000,-500.0,0.00011506,2]
[422069387,1778547049000,-500.0,0.00011506,2]
[422069429,1778547049000,-500.0,0.00011506,2]
[422069448,1778547049000,-3612.38,0.00011506,2]
[422069433,1778547049000,-1334.83,0.00011506,2]
[422069470,1778547049000,-3117.48,0.00011506,2]
[422069472,1778547049000,-500.0,0.00011506,2]
[422069471,1778547049000,-500.0,0.00011506,2]
[422069468,1778547049000,-500.0,0.00011506,2]
[422069473,1778547049000,-500.0,0.00011506,2]
[422069476,1778547049000,-716.01,0.00011506,2]
[422069474,1778547049000,-702.12,0.00011506,2]
[422069475,1778547049000,-2618.93,0.00011506,2]
[422069478,1778547049000,-500.0,0.00011506,2]
[422069477,1778547049000,-858.15,0.00011506,2]
[422069480,1778547049000,-1228.08,0.00011506,2]
[422069479,1778547049000,-877.96,0.00011506,2]
[422069481,1778547049000,-1476.52,0.00011506,2]
[422069432,1778547049000,-500.0,0.00011506,2]
[422069469,1778547049000,-593.62,0.00011506,2]
[422069485,1778547049000,-500.0,0.00011506,2]
[422069483,1778547049000,-500.0,0.00011506,2]
[422069486,1778547049000,-574.19,0.00011506,2]
[422069487,1778547049000,-500.0,0.00011506,2]
[422069489,1778547049000,-1941.14,0.00011506,2]
[422069488,1778547049000,-500.0,0.00011506,2]
[422069490,1778547049000,-500.0,0.00011506,2]
[422069492,1778547049000,-500.0,0.00011506,2]
[422069491,1778547049000,-2468.29,0.00011506,2]
[422069493,1778547049000,-500.0,0.00011506,2]
[422069498,1778547049000,-500.0,0.00011506,2]
[422069497,1778547049000,-1507.8,0.00011506,2]
[422069494,1778547049000,-500.0,0.00011506,2]
[422069496,1778547049000,-604.72,0.00011506,2]
[422069495,1778547049000,-500.0,0.00011506,2]
[422069484,1778547049000,-1282.96,0.00011506,2]
[422069466,1778547049000,-16711.42,0.00011506,2]
[422069482,1778547049000,-539.39,0.00011506,2]
[422069464,1778547049000,-500.0,0.00011506,2]
[422069467,1778547049000,-688.42,0.00011506,2]
[422069435,1778547049000,-810.1,0.00011506,2]
[422069434,1778547049000,-903.05,0.00011506,2]
[422069436,1778547049000,-500.0,0.00011506,2]
[422069437,1778547049000,-500.0,0.00011506,2]
[422069444,1778547049000,-2200.77,0.00011506,2]
[422069442,1778547049000,-794.38,0.00011506,2]
[422069443,1778547049000,-990.22,0.00011506,2]
[422069440,1778547049000,-1229.46,0.00011506,2]
[422069439,1778547049000,-2239.03,0.00011506,2]
[422069445,1778547049000,-500.0,0.00011506,2]
[422069446,1778547049000,-535.57,0.00011506,2]
[422069438,1778547049000,-500.0,0.00011506,2]
[422069441,1778547049000,-557.66,0.00011506,2]
[422069449,1778547049000,-500.0,0.00011506,2]
[422069447,1778547049000,-500.0,0.00011506,2]
[422069454,1778547049000,-2384.13,0.00011506,2]
[422069450,1778547049000,-500.0,0.00011506,2]
[422069453,1778547049000,-637.35,0.00011506,2]
[422069459,1778547049000,-1742.23,0.00011506,2]
[422069456,1778547049000,-500.0,0.00011506,2]
[422069452,1778547049000,-500.0,0.00011506,2]
[422069455,1778547049000,-500.0,0.00011506,2]
[422069457,1778547049000,-500.0,0.00011506,2]
[422069451,1778547049000,-3107.85,0.00011506,2]
[422069458,1778547049000,-500.0,0.00011506,2]
[422069460,1778547049000,-500.0,0.00011506,2]
[422069461,1778547049000,-500.0,0.00011506,2]
[422069462,1778547049000,-500.0,0.00011506,2]
[422069463,1778547049000,-500.0,0.00011506,2]
[422069465,1778547049000,-567.01,0.00011506,2]
[422069500,1778547050000,-169.82953564,0.00011506,2]
[422069501,1778547050000,-151.0,0.00011522,2]
[422069499,1778547050000,-508.06,0.00011506,2]
[422069505,1778547050000,-1405.14528569,0.0001176,2]
[422069503,1778547050000,-151.0,0.000117,2]
[422069504,1778547050000,-5862.39069191,0.0001176,2]
[422069502,1778547050000,-151.0,0.000116,2]
[422069600,1778548233000,-300.0,0.00010255,2]
[422069601,1778548233000,-300.0,0.00010255,2]
[422069599,1778548233000,-300.0,0.00010255,2]
[422069602,1778548233000,-300.0,0.00010255,2]
[422069595,1778548233000,-482.32120827,0.00010251,2]
[422069598,1778548233000,-300.0,0.00010255,2]
[422069597,1778548233000,-300.0,0.00010255,2]
[422069596,1778548233000,-300.0,0.00010255,2]
[422069593,1778548233000,-500.0,0.00010251,2]
[422069592,1778548233000,-500.0,0.00010251,2]
[422069590,1778548233000,-500.0,0.00010251,2]
[422069589,1778548233000,-500.0,0.00010251,2]
[422069586,1778548233000,-5000.0,0.0001,2]
[422069583,1778548233000,-333.0,9.855e-05,2]
[422069575,1778548233000,-768.59469077,9.425e-05,2]
[422069585,1778548233000,-76123.97234697,9.856e-05,2]
[422069582,1778548233000,-300.0,9.855e-05,2]
[422069584,1778548233000,-326.87535013,9.855e-05,2]
[422069587,1778548233000,-4528.77658037,0.0001,2]
[422069588,1778548233000,-293.42508867,0.00010251,2]
[422069581,1778548233000,-260.06562356,9.855e-05,2]
[422069603,1778548233000,-300.0,0.00010255,2]
[422069577,1778548233000,-39.93437644,9.855e-05,2]
[422069591,1778548233000,-500.0,0.00010251,2]
[422069614,1778548233000,-555.9874282,0.00010957,2]
[422069622,1778548233000,-500.0,0.00010958,2]
[422069615,1778548233000,-500.0,0.00010957,2]
[422069613,1778548233000,-500.0,0.00010957,2]
[422069631,1778548233000,-462.76392713,0.00010958,2]
[422069630,1778548233000,-500.0,0.00010958,2]
[422069626,1778548233000,-500.0,0.00010958,2]
[422069623,1778548233000,-390.87,0.00010958,2]
[422069627,1778548233000,-6914.244852,0.00010958,2]
[422069625,1778548233000,-500.0,0.00010958,2]
[422069624,1778548233000,-500.0,0.00010958,2]
[422069621,1778548233000,-157.87,0.00010958,2]
[422069619,1778548233000,-1746.5401,0.00010958,2]
[422069620,1778548233000,-570.81,0.00010958,2]
[422069628,1778548233000,-500.0,0.00010958,2]
[422069629,1778548233000,-500.0,0.00010958,2]
[422069617,1778548233000,-500.0,0.00010957,2]
[422069616,1778548233000,-500.0,0.00010957,2]
[422069612,1778548233000,-500.0,0.00010957,2]
[422069611,1778548233000,-600.0,0.00010255,2]
[422069607,1778548233000,-300.0,0.00010255,2]
[422069605,1778548233000,-300.0,0.00010255,2]
[422069610,1778548233000,-300.0,0.00010255,2]
[422069604,1778548233000,-300.0,0.00010255,2]
[422069608,1778548233000,-300.0,0.00010255,2]
[422069606,1778548233000,-300.0,0.00010255,2]
[422069618,1778548233000,-500.0,0.00010957,2]
[422069609,1778548233000,-300.0,0.00010255,2]
[422069632,1778548234000,-1095.6074947,0.00010958,2]
[422069715,1778548238000,-500.0,0.00010958,2]
[422069720,1778548238000,-500.0,0.00010958,2]
[422069713,1778548238000,-500.0,0.00010958,2]
[422069722,1778548238000,-1339.1,0.00010958,2]
[422069718,1778548238000,-500.0,0.00010958,2]
[422069728,1778548238000,-500.0,0.00010958,2]
[422069724,1778548238000,-500.0,0.00010958,2]
[422069726,1778548238000,-689.03,0.00010958,2]
[422069730,1778548238000,-310.92,0.00010958,2]
[422069732,1778548238000,-1287.27,0.00010958,2]
[422069734,1778548238000,-450.21,0.00010958,2]
[422069745,1778548238000,-500.0,0.00010958,2]
[422069742,1778548238000,-500.0,0.00010958,2]
[422069739,1778548238000,-500.0,0.00010958,2]
[422069743,1778548238000,-500.0,0.00010958,2]
[422069747,1778548238000,-500.0,0.00010958,2]
[422069738,1778548238000,-500.0,0.00010958,2]
[422069711,1778548238000,-500.0,0.00010958,2]
[422069749,1778548238000,-500.0,0.00010958,2]
[422069751,1778548238000,-500.0,0.00010958,2]
[422069760,1778548238000,-500.0,0.00010958,2]
[422069758,1778548238000,-500.0,0.00010958,2]
[422069754,1778548238000,-500.0,0.00010958,2]
[422069736,1778548238000,-500.0,0.00010958,2]
[422069700,1778548238000,-500.0,0.00010958,2]
[422069698,1778548238000,-500.0,0.00010958,2]
[422069709,1778548238000,-519.37,0.00010958,2]
[422069656,1778548238000,-213.2525053,0.00010958,2]
[422069658,1778548238000,-500.0,0.00010958,2]
[422069666,1778548238000,-500.0,0.00010958,2]
[422069664,1778548238000,-500.0,0.00010958,2]
[422069668,1778548238000,-500.0,0.00010958,2]
[422069672,1778548238000,-600.28,0.00010958,2]
[422069670,1778548238000,-500.0,0.00010958,2]
[422069674,1778548238000,-500.0,0.00010958,2]
[422069676,1778548238000,-500.0,0.00010958,2]
[422069678,1778548238000,-500.0,0.00010958,2]
[422069682,1778548238000,-500.0,0.00010958,2]
[422069680,1778548238000,-500.0,0.00010958,2]
[422069688,1778548238000,-624.37,0.00010958,2]
[422069686,1778548238000,-518.68551927,0.00010958,2]
[422069696,1778548238000,-500.0,0.00010958,2]
[422069694,1778548238000,-1335.75,0.00010958,2]
[422069684,1778548238000,-500.0,0.00010958,2]
[422069690,1778548238000,-500.0,0.00010958,2]
[422069692,1778548238000,-500.0,0.00010958,2]
[422069752,1778548238000,-589.82,0.00010958,2]
[422069703,1778548238000,-500.0,0.00010958,2]
[422069701,1778548238000,-500.0,0.00010958,2]
[422069705,1778548238000,-500.0,0.00010958,2]
[422069707,1778548238000,-500.0,0.00010958,2]
[422069756,1778548238000,-500.0,0.00010958,2]
[422069716,1778548238000,-500.0,0.00010958,2]
[422069764,1778548238000,-500.0,0.00010958,2]
[422069811,1778548238000,-356.17,0.00010958,2]
[422069824,1778548238000,-500.0,0.00010958,2]
[422069828,1778548238000,-1925.68,0.00010958,2]
[422069825,1778548238000,-500.0,0.00010958,2]
[422069822,1778548238000,-3160.83,0.00010958,2]
[422069837,1778548238000,-570.38,0.00010958,2]
[422069835,1778548238000,-500.0,0.00010958,2]
[422069829,1778548238000,-2086.11,0.00010958,2]
[422069832,1778548238000,-500.0,0.00010958,2]
[422069833,1778548238000,-14622.49,0.00010958,2]
[422069839,1778548238000,-557.68,0.00010958,2]
[422069803,1778548238000,-1167.98,0.00010958,2]
[422069843,1778548238000,-505.26,0.00010958,2]
[422069852,1778548238000,-500.0,0.00010958,2]
[422069854,1778548238000,-500.0,0.00010958,2]
[422069858,1778548238000,-500.0,0.00010958,2]
[422069856,1778548238000,-500.0,0.00010958,2]
[422069847,1778548238000,-2727.8,0.00010958,2]
[422069850,1778548238000,-533.05,0.00010958,2]
[422069849,1778548238000,-500.0,0.00010958,2]
[422069860,1778548238000,-500.0,0.00010958,2]
[422069862,1778548238000,-500.0,0.00010958,2]
[422069762,1778548238000,-500.0,0.00010958,2]
[422069864,1778548238000,-500.0,0.00010958,2]
[422069845,1778548238000,-2719.37,0.00010958,2]
[422069801,1778548238000,-498.98,0.00010958,2]
[422069841,1778548238000,-513.24,0.00010958,2]
[422069820,1778548238000,-695.09,0.00010958,2]
[422069766,1778548238000,-500.0,0.00010958,2]
[422069768,1778548238000,-500.0,0.00010958,2]
[422069805,1778548238000,-500.0,0.00010958,2]
[422069770,1778548238000,-500.0,0.00010958,2]
[422069772,1778548238000,-2798.03,0.00010958,2]
[422069777,1778548238000,-500.0,0.00010958,2]
[422069779,1778548238000,-1620.9,0.00010958,2]
[422069781,1778548238000,-598.49,0.00010958,2]
[422069775,1778548238000,-500.0,0.00010958,2]